bitfinex/quotes_ETHUSD_20251118
["timestamp","ask_amount","ask_price","bid_price","bid_amount"]
[1763432706671,0.4615,3032.6,3031.3,0.03298914]
[1763432706826,0.4615,3032.6,3031.2,5.8816314]
[1763432707026,0.405504,3032.5,3031.3,0.03298914]
[1763432707429,0.405504,3032.3,3030.6,5.8816314]
[1763432707627,0.405504,3032.3,3029.9,5.8816314]
[1763432707866,0.405504,3032.1,3029.9,5.8816314]
[1763432708237,0.405504,3032.1,3030.0,0.0330033]
[1763432708376,0.405504,3031.9,3030.0,0.0330033]
[1763432708584,0.405504,3031.9,3029.9,5.8816314]
[1763432708875,0.405504,3031.7,3029.9,5.8816314]
[1763432709181,0.405504,3031.7,3030.0,0.0330033]
[1763432709345,0.4615,3031.6,3030.0,0.0330033]
[1763432709759,0.1881,3031.5,3029.9,6.52873085]
[1763432710092,0.1881,3031.5,3030.0,0.0330033]
[1763432710265,0.4615,3031.6,3030.0,0.0330033]
[1763432710266,0.4615,3032.0,3030.6,5.8816314]
[1763432710468,0.405504,3031.9,3030.7,0.03299567]
[1763432710668,0.4615,3032.0,3030.8,0.03299458]
[1763432710843,0.4615,3032.0,3030.9,0.52732512]
[1763432711050,0.189,3033.1,3030.9,0.49433162]
[1763432711051,0.4615,3032.6,3030.9,0.49433162]
[1763432711242,0.4615,3032.6,3031.3,5.8816314]
[1763432711448,0.4615,3032.6,3031.4,0.03298805]
[1763432711865,0.04122011,3032.5,3030.7,6.78862404]
[1763432712086,0.4615,3032.6,3030.8,0.03299458]
[1763432712281,0.4615,3032.5,3030.8,0.03299458]
[1763432712772,0.405504,3032.4,3030.7,8.42599812]
[1763432713001,0.405504,3032.4,3030.7,7.65999829]
[1763432713209,0.4615,3032.5,3030.8,1.04406883]
[1763432713372,0.4615,3032.5,3030.8,1.50401362]
[1763432713780,0.4615,3032.5,3030.8,1.33131904]
[1763432713781,0.44672547,3032.4,3030.8,1.33131904]
[1763432714103,0.405504,3032.4,3031.0,5.8816314]
[1763432714278,0.405504,3032.3,3031.1,0.03299132]
[1763432714805,0.4615,3032.2,3031.1,0.03299132]
[1763432716219,0.44672955,3032.1,3031.0,5.8816314]
[1763432716376,0.405504,3032.1,3030.6,0.87137425]
[1763432716575,0.405504,3031.9,3030.7,0.03299567]
[1763432717028,0.4615,3031.8,3030.4,0.87137425]
[1763432717172,0.4615,3031.8,3030.3,6.75300565]
[1763432717504,0.4615,3031.8,3030.4,0.87137425]
[1763432717505,0.405504,3031.7,3030.4,0.87137425]
[1763432717829,0.4615,3031.8,3030.3,5.8816314]
[1763432717974,0.405504,3031.7,3030.5,0.03299785]
[1763432718318,0.4615,3031.7,3030.5,0.03299785]
[1763432718522,0.4615,3031.7,3030.4,0.87137425]
[1763432718822,0.405504,3031.6,3030.3,6.75300565]
[1763432719025,0.405504,3031.6,3030.0,0.001]
[1763432719320,0.405504,3031.4,3030.0,0.87237425]
[1763432719533,0.405504,3031.4,3030.0,0.0340033]
[1763432719836,0.4717,3031.4,3030.0,0.87237425]
[1763432719997,0.002,3032.6,3030.4,5.8816314]
[1763432720197,0.4717,3031.8,3030.5,0.03299785]
[1763432720394,0.4717,3031.8,3030.5,0.87137425]
[1763432720624,0.4717,3031.8,3030.7,6.75300565]
[1763432720849,0.4717,3032.5,3031.1,0.87137425]
[1763432721136,0.002,3032.6,3031.4,5.8816314]
[1763432721296,0.002,3032.6,3031.5,0.03298697]
[1763432721697,0.002,3032.6,3031.5,0.93997961]
[1763432721935,0.4717,3032.5,3031.6,0.87137425]
[1763432722228,0.405504,3032.4,3031.0,0.87137425]
[1763432722430,0.405504,3032.4,3030.9,1.19593965]
[1763432722431,0.405504,3032.4,3030.9,0.90436775]
[1763432722631,0.002,3032.6,3030.9,0.90436775]
[1763432722632,0.405504,3032.2,3030.9,0.90436775]
[1763432722934,0.405504,3032.2,3030.9,0.0329935]
[1763432723135,0.405504,3032.1,3031.0,0.03299241]
[1763432723437,0.04122691,3032.0,3030.8,0.87137425]
[1763432723596,0.405504,3031.9,3030.8,0.87137425]
[1763432723799,0.405504,3031.9,3030.9,0.0329935]
[1763432724022,0.4717,3032.0,3030.9,0.0329935]
[1763432724326,0.4717,3032.0,3030.8,0.87137425]
[1763432724499,0.44673227,3031.9,3030.7,0.87137425]
[1763432724698,0.44673227,3031.9,3030.5,0.87137425]
[1763432724899,0.405504,3031.7,3030.5,0.87137425]
[1763432725109,0.4717,3031.6,3030.4,6.75300565]
[1763432725329,0.4717,3031.6,3030.5,0.87137425]
[1763432725529,0.4717,3031.6,3030.4,6.75300565]
[1763432725728,0.23573371,3031.5,3030.3,0.87137425]
[1763432726035,0.23573371,3031.5,3030.1,0.87137425]
[1763432726230,0.4717,3031.4,3030.2,0.87137425]
[1763432726940,0.44674043,3031.3,3030.1,0.87137425]
[1763432727184,0.405504,3031.3,3030.1,0.03300221]
[1763432727324,0.405504,3031.3,3029.7,0.001]
[1763432727325,0.3598,3029.9,3029.7,0.001]
[1763432727531,0.04125684,3029.8,3029.7,0.001]
[1763432727731,0.405504,3029.7,3029.6,0.001]
[1763432728068,0.405504,3029.7,3029.3,0.001]
[1763432728226,0.405504,3029.5,3029.3,0.001]
[1763432728655,0.877204,3029.5,3029.3,0.001]
[1763432729530,0.4717,3029.5,3029.3,0.001]
[1763432729727,0.765304,3029.9,3029.3,0.001]
[1763432729971,0.30678275,3029.8,3029.3,0.001]
[1763432730128,0.30678275,3029.7,3029.3,0.001]
[1763432730330,0.30678275,3029.6,3029.3,0.001]
[1763432730642,0.30678275,3029.8,3029.3,0.001]
[1763432730830,0.30678275,3029.8,3029.4,0.1427]
[1763432731158,0.30678275,3029.8,3029.4,0.001]
[1763432731563,0.66658275,3029.9,3029.4,0.1427]
[1763432732067,0.66658275,3029.9,3029.5,0.49295353]
[1763432732366,1.72901731,3032.5,3029.5,0.49295353]
[1763432732367,0.6662,3031.8,3029.9,0.90699264]
[1763432732566,0.6662,3031.8,3030.6,5.8816314]
[1763432732764,0.4717,3031.7,3030.6,5.8816314]
[1763432734681,0.1945,3031.8,3030.7,0.03299567]
[1763432734984,0.4717,3032.2,3030.6,6.0233314]
[1763432735187,0.4717,3032.2,3030.6,5.8816314]
[1763432735188,0.04122555,3032.1,3030.6,5.8816314]
[1763432735369,0.002,3032.6,3030.6,5.8816314]
[1763432735683,0.4717,3032.0,3030.6,5.8816314]
[1763432735884,0.4717,3032.0,3030.7,0.03299567]
[1763432736201,0.4717,3032.0,3030.7,0.63862838]
[1763432736489,0.002,3031.7,3030.7,0.78032838]
[1763432736846,0.002,3031.7,3030.6,5.8816314]
[1763432737081,0.4524,3031.6,3030.6,5.8816314]
[1763432737246,0.002,3031.7,3030.7,0.03299567]
[1763432737589,0.4524,3031.6,3030.6,5.8816314]
[1763432737946,0.4524,3031.6,3030.7,0.03299567]
[1763432738545,0.002,3031.7,3030.7,0.59146271]
[1763432738894,0.002,3031.7,3030.8,0.1417]
[1763432739198,0.002,3031.7,3030.7,0.59146271]
[1763432739360,0.002,3031.7,3030.8,0.03299458]
[1763432740207,0.002,3031.7,3030.7,0.59146271]
[1763432740406,0.002,3031.7,3030.8,0.76908492]
[1763432741162,0.002,3031.7,3030.9,0.1417]
[1763432741369,0.002,3031.7,3031.0,0.03299241]
[1763432742923,0.002,3031.7,3030.7,4.78780927]
[1763432743075,0.4544,3031.7,3030.7,3.9]
[1763432743504,0.4544,3031.7,3030.8,0.03299458]
[1763432744421,0.4544,3031.7,3030.7,3.9]
[1763432745574,0.4544,3031.7,3030.6,5.8816314]
[1763432745774,0.4544,3031.7,3030.7,0.03299567]
[1763432746034,0.002,3031.7,3030.7,0.93998831]
[1763432746178,0.002,3031.7,3030.7,1.82779758]
[1763432746377,0.4524,3031.6,3030.6,6.76944067]
[1763432746577,0.04123371,3031.5,3030.4,0.88780927]
[1763432746776,0.405504,3031.5,3030.4,0.03299894]
[1763432747090,0.49363507,3031.4,3030.0,1.79580191]
[1763432747283,0.04123643,3031.3,3030.0,0.001]
[1763432747498,0.4524,3031.4,3030.0,0.001]
[1763432747685,0.4524,3031.3,3030.0,0.0340033]
[1763432748090,0.1938,3031.6,3030.6,5.8816314]
[1763432748479,0.002,3031.7,3030.7,0.17469567]
[1763432748718,0.002,3031.7,3031.5,0.1417]
[1763432749279,0.002,3032.4,3031.6,0.43487259]
[1763432749529,0.002,3032.4,3032.0,5.8816314]
[1763432749705,0.002,3033.4,3032.2,0.88780927]
[1763432749891,0.002,3033.4,3032.8,5.8816314]
[1763432750214,0.002,3033.4,3032.9,0.03297174]
[1763432750920,0.4544,3033.4,3032.1,6.78862404]
[1763432751224,0.002,3033.4,3032.2,0.03297935]
[1763432751521,0.002,3033.4,3032.8,5.8816314]
[1763432751681,0.002,3033.4,3032.9,0.03297174]
[1763432751880,0.002,3033.4,3032.8,5.8816314]
[1763432752424,0.002,3033.8,3032.9,1.04869264]
[1763432752580,0.002,3033.8,3033.6,5.8816314]
[1763432753422,0.002,3033.8,3032.5,5.8816314]
[1763432753423,0.6462,3033.7,3032.5,5.8816314]
[1763432753931,0.4524,3033.6,3032.5,5.8816314]
[1763432754427,0.44671052,3033.5,3031.8,5.8816314]
[1763432754716,0.4524,3033.4,3031.9,0.90699264]
[1763432755082,0.1938,3033.7,3032.5,5.8816314]
[1763432755283,0.4524,3033.6,3032.5,5.8816314]
[1763432757249,0.4524,3033.6,3032.6,0.032975]
[1763432757446,0.4524,3033.6,3032.5,5.8816314]
[1763432758035,0.1938,3032.6,3032.0,0.001]
[1763432758259,0.1938,3032.6,3032.0,0.90799264]
[1763432758618,0.1938,3032.6,3032.0,0.001]
[1763432758948,0.002,3033.7,3032.1,4.54102563]
[1763432759132,0.4524,3034.7,3033.7,0.90699264]
[1763432759447,0.4524,3035.2,3034.3,5.8816314]
[1763432760050,0.6462,3035.8,3035.0,5.8816314]
[1763432760561,0.1938,3035.8,3035.0,6.0233314]
[1763432761051,0.1938,3036.0,3035.0,6.0233314]
[1763432761515,0.1938,3036.0,3035.1,0.03294784]
[1763432761715,0.1938,3036.0,3035.0,6.0233314]
[1763432762156,0.1938,3036.0,3035.0,6.05628032]
[1763432762365,0.1938,3037.4,3036.0,0.90699264]
[1763432762659,0.4524,3038.3,3037.1,0.90699264]
[1763432762813,0.1938,3039.4,3037.2,0.03292506]
[1763432763152,0.4524,3038.8,3037.3,0.1417]
[1763432763375,0.4524,3038.8,3037.2,0.52182146]
[1763432763376,0.4524,3038.8,3036.8,0.03292939]
[1763432763542,0.1938,3039.4,3037.6,6.91020075]
[1763432763852,0.1938,3039.4,3037.5,0.405504]
[1763432763853,0.49352789,3039.3,3037.5,1.00795621]
[1763432764024,0.4524,3039.3,3037.7,0.03291964]
[1763432764440,0.04112924,3039.2,3036.7,0.90699264]
[1763432764657,0.04112924,3039.2,3037.0,0.03292723]
[1763432764819,0.4524,3039.1,3037.0,0.03292723]
[1763432765018,0.04113195,3039.0,3037.0,0.03292723]
[1763432765222,0.4524,3039.1,3036.7,0.03293048]
[1763432765532,0.1938,3039.4,3036.8,0.03292939]
[1763432765533,0.405504,3038.9,3036.8,0.03292939]
[1763432765730,0.405504,3038.9,3035.0,1.02950927]
[1763432765731,0.405504,3038.7,3035.0,1.02950927]
[1763432765920,0.405504,3036.7,3035.0,0.1417]
[1763432766120,0.405504,3036.7,3035.1,0.03294784]
[1763432766322,0.1862,3036.8,3035.0,0.1417]
[1763432766323,0.4674,3036.6,3035.0,0.17464892]
[1763432766653,0.4674,3036.6,3035.0,0.1417]
[1763432766861,0.4674,3036.6,3033.2,1.79390947]
[1763432766862,0.405504,3036.5,3035.1,0.03294784]
[1763432767463,0.405504,3036.3,3035.1,0.03294784]
[1763432767667,0.405504,3036.3,3034.7,0.03295218]
[1763432767877,0.405504,3036.1,3034.7,0.03295218]
[1763432768164,0.4674,3036.2,3034.6,0.1417]
[1763432768323,0.4674,3036.1,3034.6,0.1417]
[1763432768970,0.4674,3036.1,3034.7,0.03295218]
[1763432769322,0.405504,3036.0,3034.8,0.0329511]
[1763432769655,0.4674,3036.1,3034.8,0.0329511]
[1763432769854,0.4674,3036.0,3034.6,0.1417]
[1763432770030,0.44667795,3035.9,3034.1,0.1417]
[1763432770230,0.4674,3035.8,3034.1,0.1417]
[1763432770431,0.4674,3035.8,3034.2,0.03295761]
[1763432770755,0.6536,3035.8,3034.1,0.87984878]
[1763432771142,0.6536,3035.8,3034.2,0.1417]
[1763432771342,0.1862,3035.8,3034.3,0.03295653]
[1763432771644,0.1862,3035.8,3034.2,0.1417]
[1763432771645,0.6536,3036.8,3035.0,1.31249664]
[1763432771830,0.1862,3036.8,3035.1,0.85521758]
[1763432772425,0.4674,3036.9,3035.2,0.547204]
[1763432772648,0.1862,3037.2,3035.3,0.93993831]
[1763432772854,0.1862,3037.2,3035.4,0.405504]
[1763432773062,0.4674,3037.4,3035.5,0.1746435]
[1763432773354,0.6536,3037.1,3035.2,0.03294675]
[1763432773554,0.44666303,3037.0,3034.5,0.1417]
[1763432773757,0.872904,3037.0,3034.6,0.17465327]
[1763432773956,0.04116039,3036.9,3034.2,0.1417]
[1763432774158,0.405504,3036.8,3034.2,0.17465761]
[1763432774534,0.405504,3036.6,3034.2,0.17465761]
[1763432775059,0.405504,3036.4,3034.1,0.1417]
[1763432775234,0.405504,3036.4,3034.1,0.1746587]
[1763432775434,0.4674,3036.3,3034.2,0.1417]
[1763432775765,0.4674,3036.3,3034.3,0.03295653]
[1763432776148,0.44667388,3036.2,3034.1,0.1746587]
[1763432776334,0.405504,3036.2,3034.1,0.1417]
[1763432776540,0.1862,3037.1,3034.0,0.001]
[1763432776541,0.405504,3036.0,3034.0,0.001]
[1763432776735,0.50857123,3036.1,3034.0,0.001]
[1763432776736,0.1862,3034.1,3034.0,0.001]
[1763432776948,0.1862,3034.8,3034.0,0.001]
[1763432777167,0.1862,3034.4,3034.0,0.001]
[1763432777763,0.4674,3034.3,3034.0,0.001]
[1763432778122,0.04119702,3034.2,3034.0,0.001]
[1763432778353,0.4674,3034.3,3033.7,0.001]
[1763432778937,0.4674,3034.3,3033.7,0.03396304]
[1763432779267,0.4674,3034.3,3033.7,0.001]
[1763432779443,0.405504,3034.2,3033.7,0.001]
[1763432779636,0.405504,3034.0,3033.4,0.001]
[1763432779830,0.405504,3033.8,3033.4,0.001]
[1763432780226,0.4909,3033.7,3033.4,0.001]
[1763432780761,0.44670916,3033.6,3033.4,0.001]
[1763432780964,0.405504,3033.6,3033.4,0.001]
[1763432781128,0.93761052,3033.5,3033.4,0.001]
[1763432781460,0.896404,3033.5,3033.4,0.001]
[1763432781862,0.4909,3033.5,3033.4,0.001]
[1763432782361,0.896404,3033.5,3033.4,0.001]
[1763432782560,0.896404,3033.5,3032.0,0.001]
[1763432782561,0.405504,3033.4,3032.0,0.001]
[1763432782729,0.4909,3033.4,3032.0,0.03398153]
[1763432782925,0.4909,3034.0,3032.1,0.1437]
[1763432783124,0.1862,3034.4,3032.0,0.03398153]
[1763432783125,0.4909,3034.3,3032.2,0.03297935]
[1763432783589,0.4909,3034.3,3032.3,0.17667826]
[1763432783791,0.1802,3035.3,3033.0,6.91020075]
[1763432783944,0.1802,3035.3,3033.2,0.405504]
[1763432784277,0.4909,3036.0,3033.4,0.405504]
[1763432784482,0.1802,3035.9,3033.6,0.405504]
[1763432784682,0.4909,3035.8,3033.7,0.17666304]
[1763432784883,0.4909,3035.8,3033.7,0.66756304]
[1763432785248,0.04115361,3037.4,3033.8,1.03908107]
[1763432785249,0.4909,3036.5,3033.8,1.03908107]
[1763432785580,0.4909,3036.5,3034.2,1.31249664]
[1763432785779,0.4909,3036.5,3034.4,0.405504]
[1763432786084,0.1802,3036.6,3034.5,0.03295435]
[1763432786258,0.4909,3036.9,3034.6,0.405504]
[1763432786464,0.4909,3036.9,3034.7,0.03295218]
[1763432786680,0.4909,3036.9,3034.1,0.0329587]
[1763432786988,0.4909,3036.9,3034.5,0.90699264]
[1763432787152,0.4909,3036.9,3034.6,0.95837261]
[1763432787350,0.405504,3036.8,3034.6,0.95837261]
[1763432787682,0.405504,3036.8,3033.9,0.88780927]
[1763432787683,0.0411631,3036.7,3033.8,0.1437]
[1763432787844,0.0411631,3036.7,3033.4,7.36711586]
[1763432787845,0.1802,3036.7,3033.9,0.03296087]
[1763432788051,0.405504,3036.5,3033.9,0.03296087]
[1763432788247,0.405504,3036.5,3034.0,0.549204]
[1763432788455,0.4909,3036.6,3034.1,0.0329587]
[1763432788456,0.53206717,3036.4,3034.1,0.0329587]
[1763432788661,0.53206717,3036.4,3034.2,0.1437]
[1763432788855,0.405504,3036.3,3034.3,0.03295653]
[1763432789086,0.53206717,3036.4,3034.3,0.03295653]
[1763432789087,0.4909,3036.4,3034.3,0.03295653]
[1763432789286,0.4909,3036.4,3034.5,0.90699264]
[1763432789601,0.1802,3036.7,3034.6,0.97603815]
[1763432789759,0.1802,3036.7,3034.7,0.17665218]
[1763432790455,0.1802,3036.7,3034.2,1.03150927]
[1763432790456,0.53206446,3036.6,3034.2,1.03150927]
[1763432790755,0.4909,3036.6,3034.3,0.17665653]
[1763432790956,0.1862,3037.1,3034.6,0.405504]
[1763432791168,0.1802,3037.4,3035.5,0.90699264]
[1763432791369,0.4909,3037.8,3035.6,1.29782271]
[1763432791602,0.6711,3037.8,3035.8,0.405504]
[1763432791910,0.04114955,3037.7,3035.7,0.7783]
[1763432792090,0.4909,3037.7,3035.8,0.03294024]
[1763432792266,0.4909,3038.1,3035.9,0.549204]
[1763432792465,0.002,3039.2,3036.6,0.405504]
[1763432792466,0.1802,3038.8,3036.6,0.405504]
[1763432792675,0.1802,3038.8,3036.8,0.405504]
[1763432793002,0.53203601,3038.7,3036.9,0.1437]
[1763432793165,0.4909,3038.7,3036.9,0.1437]
[1763432793565,0.1802,3038.8,3037.0,0.03292723]
[1763432793963,0.6711,3039.1,3037.1,0.1437]
[1763432794164,0.04113195,3039.0,3037.1,0.1437]
[1763432794389,0.4909,3039.0,3037.1,0.17662614]
[1763432794701,0.002,3037.4,3037.1,0.17662614]
[1763432795001,0.002,3037.4,3036.8,0.6711]
[1763432795002,0.002,3037.4,3036.9,0.03292831]
[1763432795491,0.002,3037.4,3036.8,0.03292939]
[1763432795907,0.002,3037.4,3036.7,0.76450096]
[1763432796198,0.002,3037.4,3036.8,0.31084936]
[1763432796364,0.002,3037.4,3036.9,0.03292831]
[1763432796567,0.002,3037.8,3036.9,0.17662831]
[1763432797082,1.72901731,3041.4,3037.0,0.405504]
[1763432797392,0.6748,3039.5,3037.2,0.405504]
[1763432797590,0.1995,3039.3,3037.3,0.17662397]
[1763432797891,0.1995,3040.0,3037.6,2.20030591]
[1763432798094,0.1995,3040.0,3037.9,0.405504]
[1763432798402,0.4946,3039.9,3038.0,0.03291639]
[1763432798987,0.44662512,3039.8,3037.9,0.03291747]
[1763432799311,0.405504,3039.8,3037.9,0.03291747]
[1763432799511,0.4946,3039.9,3038.0,0.549204]
[1763432799690,0.4946,3039.9,3038.1,0.0329153]
[1763432800024,0.4946,3039.9,3038.1,0.1766153]
[1763432800207,0.4946,3039.9,3037.7,0.91105067]
[1763432800208,0.4946,3039.9,3037.8,0.03291855]
[1763432800408,0.4946,3039.9,3037.9,0.1437]
[1763432800715,0.4946,3039.9,3038.0,0.03291639]
[1763432801086,0.4946,3039.9,3038.0,0.17661639]
[1763432802110,0.4946,3039.9,3038.1,0.405504]
[1763432802343,0.1995,3040.0,3038.2,0.03291422]
[1763432802609,0.4946,3039.8,3038.2,0.03291422]
[1763432803780,0.405504,3039.7,3037.5,6.91020075]
[1763432803984,0.405504,3039.7,3037.7,0.03291964]
[1763432804176,0.4946,3039.6,3037.8,0.1437]
[1763432804376,0.4946,3039.6,3037.9,0.03291747]
[1763432804618,0.4946,3039.6,3038.0,0.1437]
[1763432804815,0.6941,3040.0,3038.1,0.0329153]
[1763432805113,0.6941,3040.0,3038.1,0.40037683]
[1763432805277,0.4946,3039.9,3038.1,0.36746153]
[1763432805476,0.44662512,3039.8,3037.6,0.74048008]
[1763432805681,0.44662512,3039.8,3037.7,0.03291964]
[1763432805902,0.1995,3040.0,3037.7,0.03291964]
[1763432805903,0.405504,3039.6,3037.7,0.03291964]
[1763432806111,0.405504,3039.6,3037.6,1.68039344]
[1763432806311,0.405504,3039.4,3037.6,1.68039344]
[1763432806520,0.405504,3039.4,3037.6,0.74048008]
[1763432806521,0.04112789,3039.3,3037.6,0.74048008]
[1763432806828,0.900104,3039.2,3037.1,0.1437]
[1763432806998,0.900104,3039.2,3037.2,0.03292506]
[1763432807199,0.4946,3039.1,3037.2,0.17662506]
[1763432807390,0.4946,3039.1,3037.5,6.91020075]
[1763432807589,0.4946,3039.1,3037.6,1.63093344]
[1763432808031,0.4946,3039.1,3037.6,1.77463344]
[1763432808228,0.4946,3039.1,3037.6,1.59801272]
[1763432808404,0.4946,3039.1,3036.9,0.1437]
[1763432808606,0.4946,3039.1,3037.0,0.03292723]
[1763432809130,0.4946,3039.1,3036.9,0.1437]
[1763432809131,0.04113195,3039.0,3036.9,0.1437]
[1763432809432,0.405504,3038.9,3037.0,0.03292723]
[1763432809593,0.900104,3038.9,3037.0,0.03292723]
[1763432809798,0.4946,3038.8,3037.0,0.03292723]
[1763432810629,0.4946,3038.8,3037.1,0.03292614]
[1763432811147,0.44664001,3038.7,3036.8,0.03292939]
[1763432811344,0.44664001,3038.7,3035.6,0.88780927]
[1763432811345,0.1995,3037.2,3035.6,0.88780927]
[1763432811654,0.1995,3035.9,3034.0,0.4946]
[1763432811800,0.405504,3035.8,3034.0,0.4946]
[1763432812149,0.405504,3035.8,3033.9,0.1437]
[1763432812150,0.405504,3035.6,3033.9,0.1437]
[1763432812345,0.4946,3035.8,3034.1,0.0329587]
[1763432812495,0.4946,3035.7,3034.1,0.0329587]
[1763432813324,0.405504,3035.6,3034.0,0.03295978]
[1763432813534,0.4946,3035.7,3034.1,0.0329587]
[1763432813700,0.4946,3035.6,3034.1,0.0329587]
[1763432813899,0.4946,3035.6,3034.2,0.03295761]
[1763432814202,0.4946,3035.6,3033.7,0.03296304]
[1763432814538,0.4946,3036.2,3034.0,1.31249664]
[1763432814832,0.4946,3037.0,3034.5,0.88780927]
[1763432814998,0.4946,3037.0,3034.7,0.405504]
[1763432815199,0.04116039,3036.9,3036.6,0.001]
[1763432815440,0.4946,3037.0,3036.6,0.001]
[1763432815643,0.4946,3036.9,3036.6,0.001]
[1763432817556,0.405504,3036.8,3036.6,0.001]
[1763432817927,0.4946,3036.7,3036.6,0.001]
[1763432820623,0.900104,3036.7,3036.6,0.001]
[1763432820929,0.4946,3036.7,3036.6,0.001]
[1763432821947,0.002,3039.2,3036.6,0.001]
[1763432822161,0.4946,3038.5,3036.6,0.1447]
[1763432822330,0.4946,3038.5,3036.8,0.88780927]
[1763432822537,0.4946,3038.5,3036.9,0.17662831]
[1763432823155,0.4946,3038.5,3036.9,0.03292831]
[1763432823559,0.4946,3038.9,3037.0,0.1437]
[1763432823857,0.4946,3038.9,3037.1,0.03292614]
[1763432824061,0.4946,3038.9,3036.9,0.88780927]
[1763432824218,0.04113465,3038.8,3036.6,0.9409242]
[1763432824424,0.405504,3038.8,3036.6,0.17763156]
[1763432824750,0.002,3039.2,3036.8,1.29331327]
[1763432824958,0.4966,3039.2,3038.3,5.8542435]
[1763432825664,0.002,3039.2,3038.4,0.03291205]
[1763432825866,0.002,3039.2,3038.5,0.03291097]
[1763432826051,0.002,3039.2,3039.0,5.8542435]
[1763432826236,0.002,3039.2,3038.4,0.90699264]
[1763432826237,0.1942,3039.2,3038.4,0.90699264]
[1763432826427,0.002,3039.2,3038.5,0.76757702]
[1763432827063,0.002,3039.2,3038.4,0.90699264]
[1763432827266,0.4918,3039.2,3038.3,5.8542435]
[1763432828464,0.002,3039.2,3038.4,0.03291205]
[1763432828930,0.002,3039.2,3038.4,0.93990469]
[1763432829129,0.002,3039.2,3039.0,5.8542435]
[1763432829331,0.002,3039.2,3039.1,0.03290447]
[1763432829531,0.4898,3040.8,3039.1,0.17660447]
[1763432829737,0.4898,3040.8,3039.8,5.8542435]
[1763432830266,0.4898,3040.8,3039.5,5.8542435]
[1763432830267,0.1922,3040.7,3039.5,5.8542435]
[1763432830469,0.1922,3040.7,3039.6,0.03289906]
[1763432830633,0.1922,3040.7,3039.7,0.03289798]
[1763432830835,0.1922,3040.7,3039.5,5.8542435]
[1763432830836,0.1922,3040.7,3039.8,0.0328969]
[1763432831066,0.682,3040.7,3039.8,0.0328969]
[1763432831265,0.4466143,3040.6,3039.0,0.90699264]
[1763432831444,0.405504,3040.4,3039.0,1.58311625]
[1763432831939,0.4898,3040.3,3039.0,1.58311625]
[1763432832646,0.4898,3040.3,3039.0,0.67612361]
[1763432832846,0.44661971,3040.2,3038.9,5.8542435]
[1763432833046,0.405504,3040.2,3038.9,5.8542435]
[1763432833356,0.4898,3040.1,3038.9,5.8542435]
[1763432833705,0.405504,3040.0,3038.9,5.8542435]
[1763432833886,0.405504,3040.0,3038.3,5.8552435]
[1763432833887,0.405504,3039.8,3038.3,5.8552435]
[1763432834096,0.1922,3038.4,3038.3,0.001]
[1763432834441,0.405504,3038.3,3037.0,0.1437]
[1763432834688,0.405504,3038.3,3037.9,0.001]
[1763432834976,0.682,3038.4,3037.9,0.001]
[1763432834977,0.405504,3038.1,3037.9,0.001]
[1763432835474,0.4898,3038.0,3037.9,0.001]
[1763432835833,0.1922,3038.4,3037.9,0.001]
[1763432836033,0.682,3038.4,3037.9,0.001]
[1763432836238,0.682,3038.4,3037.9,0.03391747]
[1763432836437,0.1922,3038.4,3037.9,0.03391747]
[1763432836858,0.4898,3038.3,3037.9,0.001]
[1763432837033,0.4898,3038.9,3037.9,0.001]
[1763432837237,0.4898,3038.9,3038.1,5.8542435]
[1763432837437,0.4898,3039.5,3038.2,0.58542435]
[1763432837639,0.4898,3039.5,3038.2,1.49241699]
[1763432838064,0.4898,3039.5,3038.2,0.90699264]
[1763432838773,0.4898,3039.5,3038.2,0.93990686]
[1763432838973,0.4898,3039.5,3038.2,0.90699264]
[1763432839174,0.44663053,3039.4,3038.1,5.8542435]
[1763432839375,0.405504,3039.4,3038.1,5.8542435]
[1763432839581,0.4898,3039.5,3038.1,5.8542435]
[1763432839582,0.4784,3039.3,3038.1,5.8542435]
[1763432840109,0.4784,3039.3,3038.2,0.93990686]
[1763432840809,0.1922,3039.6,3038.8,5.8542435]
[1763432841015,0.1922,3039.6,3038.9,0.03290664]
[1763432841219,0.1922,3039.6,3038.8,5.8542435]
[1763432841375,0.4784,3039.5,3038.8,5.8542435]
[1763432841802,0.1922,3039.6,3038.9,0.03290664]
[1763432842107,0.4784,3040.0,3038.9,0.62162165]
[1763432842715,0.4784,3040.0,3038.9,0.58871501]
[1763432843106,0.4784,3040.0,3038.9,0.62162165]
[1763432843490,0.4784,3040.0,3038.8,5.8542435]
[1763432843887,0.405504,3039.9,3038.8,5.8542435]
[1763432844301,0.4784,3039.8,3038.8,5.8542435]
[1763432844488,0.04112247,3039.7,3038.8,5.8542435]
[1763432844787,0.4784,3039.8,3038.8,5.8542435]
[1763432844991,0.4784,3039.8,3038.9,0.03290664]
[1763432845188,0.885904,3040.3,3038.8,6.43966785]
[1763432845419,0.4804,3040.3,3038.9,0.03290664]
[1763432845590,0.4804,3040.3,3038.9,0.93989928]
[1763432846310,0.4804,3040.3,3038.9,1.97240855]
[1763432846488,0.4804,3040.3,3039.0,0.84120764]
[1763432846688,0.4804,3040.3,3038.9,1.93950191]
[1763432846689,0.4804,3040.3,3038.9,0.90699264]
[1763432847416,0.4804,3040.3,3039.0,0.03290556]
[1763432847638,0.405504,3040.2,3038.8,5.8542435]
[1763432847826,0.44661971,3040.2,3038.8,5.8542435]
[1763432848028,0.4784,3040.1,3038.8,5.8542435]
[1763432848227,0.4784,3040.1,3038.8,6.43966785]
[1763432848554,0.4784,3040.1,3038.8,5.8542435]
[1763432848555,0.405504,3040.0,3038.8,5.8542435]
[1763432848859,0.405504,3039.8,3038.2,0.88780927]
[1763432849155,0.1839,3038.9,3038.1,5.8542435]
[1763432849306,0.1839,3038.9,3037.9,0.001]
[1763432849807,0.1839,3039.2,3037.9,0.88880927]
[1763432850114,0.1839,3039.2,3037.9,0.03391747]
[1763432850327,0.6623,3039.2,3037.9,0.18387194]
[1763432850847,0.1839,3039.2,3038.2,5.8542435]
[1763432851042,0.1839,3039.2,3038.3,0.03291314]